bitfinex/quotes_BTCUSD_20241111
["timestamp","ask_amount","ask_price","bid_price","bid_amount"]
[1731333959249,0.006,82175.0,82174.0,0.03655333]
[1731333959389,0.006,82175.0,82174.0,0.15824533]
[1731333959588,0.006,82175.0,82174.0,0.03655333]
[1731333959789,0.006,82175.0,82174.0,0.01510214]
[1731333960013,0.006,82175.0,82174.0,0.03655333]
[1731333960213,0.007,82175.0,82174.0,0.03655333]
[1731333960671,0.25463321,82175.0,82174.0,0.03655333]
[1731333961200,0.26063321,82175.0,82174.0,0.03655333]
[1731333961640,0.38161839,82175.0,82174.0,0.03655333]
[1731333961872,0.38161839,82175.0,82156.0,0.075]
[1731333961873,0.266391,82172.0,82156.0,0.075]
[1731333962077,0.2434,82169.0,82157.0,0.20397355]
[1731333962285,0.2434,82169.0,82158.0,0.02150401]
[1731333962286,0.243413,82165.0,82158.0,0.02150401]
[1731333962498,0.243418,82163.0,82159.0,0.02150401]
[1731333962694,0.121713,82160.0,82158.0,0.0044187]
[1731333962902,0.12594221,82159.0,82156.0,0.075]
[1731333963127,0.121716,82158.0,82157.0,0.02150575]
[1731333963344,0.12594221,82159.0,82157.0,0.02150575]
[1731333963580,0.12594221,82159.0,82151.0,0.1268829]
[1731333963797,0.12594221,82159.0,82152.0,0.02150658]
[1731333964002,0.12594221,82159.0,82153.0,0.02150658]
[1731333964003,0.121722,82154.0,82153.0,0.02150658]
[1731333964224,0.12172,82156.0,82153.0,0.02150658]
[1731333964440,0.12594221,82159.0,82154.0,0.02150658]
[1731333964441,0.121721,82155.0,82154.0,0.02150658]
[1731333965090,0.121721,82155.0,82154.0,0.02152308]
[1731333965521,0.24766321,82155.0,82154.0,0.02152308]
[1731333965933,0.27066321,82155.0,82154.0,0.02152308]
[1731333966181,0.023,82154.0,82141.0,0.0769]
[1731333966377,0.023,82154.0,82126.0,0.16752644]
[1731333966378,0.023,82149.0,82142.0,0.02152124]
[1731333966588,0.121742,82141.0,82134.0,0.0789]
[1731333966794,0.023,82147.0,82135.0,0.02152573]
[1731333967009,0.023,82143.0,82136.0,0.02152573]
[1731333967231,0.121745,82139.0,82137.0,0.02152573]
[1731333967441,0.023,82141.0,82138.0,0.02152573]
[1731333967641,0.023,82141.0,82139.0,0.02152573]
[1731333967642,0.12594221,82140.0,82139.0,0.02152573]
[1731333967895,0.12594221,82140.0,82132.0,0.000842]
[1731333967896,0.023,82139.0,82132.0,0.000842]
[1731333968131,0.144753,82133.0,82132.0,0.000842]
[1731333968353,0.27069521,82133.0,82132.0,0.02235214]
[1731333968570,0.14894221,82133.0,82132.0,0.02235214]
[1731333969191,0.14894221,82133.0,82132.0,0.02680787]
[1731333969391,0.14894221,82133.0,82132.0,0.02235214]
[1731333969622,0.15894221,82133.0,82132.0,0.02235214]
[1731333969815,0.28069521,82133.0,82132.0,0.02235214]
[1731333970050,0.15894221,82133.0,82132.0,0.02235214]
[1731333970223,0.15894221,82133.0,82132.0,0.04922959]
[1731333970427,0.28069521,82133.0,82132.0,0.05368344]
[1731333970826,0.28069521,82133.0,82132.0,0.04922959]
[1731333971032,0.16794221,82133.0,82132.0,0.04922959]
[1731333971250,0.16794221,82133.0,82132.0,0.02235214]
[1731333971614,0.16794221,82133.0,82132.0,0.02680646]
[1731333972059,0.2252741,82133.0,82132.0,0.05368391]
[1731333972641,0.28969521,82133.0,82132.0,0.04906867]
[1731333973864,0.28069521,82133.0,82132.0,0.02227547]
[1731333974091,0.28069521,82133.0,82132.0,0.03566715]
[1731333974226,0.28069521,82133.0,82132.0,0.01423368]
[1731333974227,0.29269521,82133.0,82132.0,0.01423368]
[1731333974439,0.28269521,82133.0,82132.0,0.01423368]
[1731333975007,0.17394221,82133.0,82132.0,0.01423368]
[1731333975744,0.25169521,82133.0,82132.0,0.000842]
[1731333976084,0.12994221,82133.0,82132.0,0.01422631]
[1731333976387,0.25169521,82133.0,82132.0,0.01422631]
[1731333977235,0.12994221,82133.0,82132.0,0.000842]
[1731333977742,0.25169521,82133.0,82132.0,0.000842]
[1731333978309,0.12994221,82133.0,82132.0,0.000842]
[1731333978513,0.25169521,82133.0,82132.0,0.000842]
[1731333978720,0.12994221,82133.0,82132.0,0.000842]
[1731333979139,0.025,82133.0,82132.0,0.202997]
[1731333979334,0.025,82133.0,82132.0,0.45662249]
[1731333979542,0.025,82133.0,82132.0,0.44146179]
[1731333979711,0.05439924,82156.0,82153.0,0.121724]
[1731333979913,0.03626616,82161.0,82154.0,0.01337805]
[1731333980111,0.03626616,82165.0,82149.0,0.0804]
[1731333980346,0.03626616,82169.0,82157.0,0.121717]
[1731333980547,0.03626616,82168.0,82157.0,0.02573444]
[1731333980697,0.18246954,82162.0,82158.0,0.00452435]
[1731333980907,0.00603699,82167.0,82158.0,0.00452435]
[1731333980908,0.12594221,82161.0,82158.0,0.00452435]
[1731333981128,0.03628242,82167.0,82158.0,0.00452435]
[1731333981331,0.12594221,82166.0,82154.0,0.243445]
[1731333981575,0.12594221,82166.0,82159.0,0.00452398]
[1731333981799,0.009,82162.0,82160.0,0.00452362]
[1731333982010,0.13494221,82162.0,82157.0,0.01336563]
[1731333982219,0.13494221,82162.0,82158.0,0.00452435]
[1731333982407,0.12594221,82162.0,82156.0,0.01336563]
[1731333982623,0.12594221,82162.0,82157.0,0.01789034]
[1731333982843,0.12594221,82162.0,82157.0,0.00452471]
[1731333983057,0.12594221,82162.0,82160.0,0.001]
[1731333983058,0.13194221,82162.0,82160.0,0.001]
[1731333983262,0.007,82166.0,82159.0,0.121714]
[1731333983509,0.007,82166.0,82157.0,0.01337894]
[1731333983510,0.12594221,82165.0,82161.0,0.00452325]
[1731333983686,0.002,82162.0,82160.0,0.00452362]
[1731333984029,0.12594221,82165.0,82157.0,0.01338015]
[1731333984250,0.12594221,82165.0,82159.0,0.243429]
[1731333984251,0.003,82162.0,82159.0,0.243429]
[1731333984455,0.009,82162.0,82160.0,0.01438015]
[1731333984681,0.006,82162.0,82161.0,0.01338015]
[1731333984894,0.006,82162.0,82161.0,0.01787203]
[1731333985102,0.012,82162.0,82161.0,0.00449188]
[1731333985550,0.005,82161.0,82160.0,0.001]
[1731333985783,0.005,82161.0,82140.0,0.0786]
[1731333985784,0.31193663,82161.0,82140.0,0.0786]
[1731333986024,0.24346,82149.0,82144.0,0.18246954]
[1731333986194,0.24346,82149.0,82140.0,0.0786]
[1731333986195,0.12594221,82149.0,82140.0,0.0786]
[1731333986396,0.12594221,82149.0,82145.0,0.0042008]
[1731333986600,0.12594221,82149.0,82142.0,0.01339173]
[1731333986797,0.12594221,82149.0,82143.0,0.01339173]
[1731333986997,0.12594221,82149.0,82144.0,0.01339173]
[1731333987197,0.12594221,82149.0,82143.0,0.00421317]
[1731333987396,0.121731,82148.0,82145.0,0.00421244]
[1731333987755,0.243439,82156.0,82140.0,0.0786]
[1731333987756,0.03630463,82159.0,82140.0,0.0786]
[1731333987990,0.05442364,82162.0,82151.0,0.243451]
[1731333987991,0.18246954,82162.0,82151.0,0.243451]
[1731333988209,0.03630463,82171.0,82170.0,0.121698]
[1731333988416,0.18246954,82161.0,82160.0,0.41554]
[1731333988616,0.18246954,82172.0,82160.0,0.41554]
[1731333988617,0.18246954,82172.0,82171.0,0.121697]
[1731333988820,0.18246954,82172.0,82171.0,0.196897]
[1731333988947,0.18246954,82172.0,82171.0,0.21029281]
[1731333989153,0.001688,82174.0,82173.0,0.121694]
[1731333989355,0.001688,82174.0,82173.0,0.01339581]
[1731333990356,0.001688,82174.0,82171.0,0.196896]
[1731333990603,0.001688,82174.0,82172.0,0.121695]
[1731333990833,0.001688,82174.0,82171.0,0.0752]
[1731333990834,0.007,82172.0,82171.0,0.440289]
[1731333991037,0.007,82172.0,82171.0,0.4536791]
[1731333991268,0.007,82172.0,82171.0,0.2102871]
[1731333991904,0.011688,82174.0,82171.0,0.0885901]
[1731333992136,0.011688,82174.0,82173.0,0.121694]
[1731333992336,0.021688,82174.0,82173.0,0.122694]
[1731333992750,0.021688,82174.0,82173.0,0.13608057]
[1731333993172,0.011688,82174.0,82173.0,0.13608057]
[1731333993378,0.001688,82174.0,82173.0,0.13508057]
[1731333993578,0.011688,82174.0,82173.0,0.13608057]
[1731333994366,0.011688,82174.0,82173.0,0.23608057]
[1731333994747,0.021688,82174.0,82173.0,0.25848446]
[1731333995330,0.011688,82174.0,82173.0,0.25748446]
[1731333995533,0.011688,82174.0,82173.0,0.43352667]
[1731333995748,0.1778,82207.0,82205.0,0.121647]
[1731333995950,0.1778,82207.0,82205.0,0.42728035]
[1731333996149,0.1778,82207.0,82205.0,0.1338117]
[1731333996548,0.1778,82207.0,82205.0,0.14714455]
[1731333996777,0.18415754,82206.0,82203.0,0.243297]
[1731333996978,0.18415754,82206.0,82198.0,0.1264]
[1731333996979,0.001688,82206.0,82205.0,0.121647]
[1731333997179,0.001688,82206.0,82205.0,0.125647]
[1731333997382,0.001688,82206.0,82205.0,0.128647]
[1731333997704,0.001688,82206.0,82205.0,0.14197072]
[1731333997880,0.001688,82206.0,82205.0,0.13897072]
[1731333998407,0.001688,82206.0,82205.0,0.14197072]
[1731333998974,0.001688,82206.0,82205.0,0.124647]
[1731333999434,0.001688,82206.0,82205.0,0.128647]
[1731333999668,0.001688,82206.0,82205.0,0.1379581]
[1731333999909,0.001688,82206.0,82205.0,0.14204234]
[1731334000113,0.001688,82206.0,82205.0,0.14304234]
[1731334000340,0.001688,82206.0,82205.0,0.02139534]
[1731334000586,0.001688,82206.0,82205.0,0.00808424]
[1731334000751,0.001688,82206.0,82205.0,0.12973124]
[1731334000956,0.001688,82206.0,82205.0,0.14304223]
[1731334001136,0.18415754,82206.0,82205.0,0.01208424]
[1731334003758,0.004688,82206.0,82198.0,0.0813]
[1731334003979,0.004688,82206.0,82203.0,0.121649]
[1731334004185,0.004688,82206.0,82202.0,0.00408551]
[1731334004186,0.004688,82206.0,82199.0,0.243311]
[1731334004361,0.001688,82206.0,82204.0,0.00408479]
[1731334004560,0.001688,82206.0,82203.0,0.121649]
[1731334004830,0.001688,82206.0,82205.0,0.00408442]
[1731334005034,0.001688,82206.0,82204.0,0.00408479]
[1731334005332,0.001688,82206.0,82205.0,0.017404]
[1731334006073,0.001688,82206.0,82205.0,0.00408442]
[1731334006419,0.001688,82206.0,82205.0,0.01332517]
[1731334006624,0.001688,82206.0,82205.0,0.01737625]
[1731334007070,0.004688,82206.0,82205.0,0.01737625]
[1731334007236,0.004688,82206.0,82205.0,0.03869761]
[1731334007438,0.004688,82206.0,82205.0,0.01737625]
[1731334007803,0.001688,82206.0,82205.0,0.01332517]
[1731334008006,0.004688,82206.0,82205.0,0.01737603]
[1731334011653,0.004688,82206.0,82205.0,0.0387575]
[1731334012211,0.001688,82206.0,82205.0,0.0387575]
[1731334012412,0.24927521,82206.0,82205.0,0.01739915]
[1731334012611,0.25027521,82206.0,82205.0,0.01739915]
[1731334012898,0.25027521,82206.0,82205.0,0.01334829]
[1731334013193,0.25027521,82206.0,82191.0,0.0213707]
[1731334013194,0.12963021,82206.0,82191.0,0.0213707]
[1731334013393,0.128654,82200.0,82192.0,0.01336]
[1731334013652,0.25,82202.0,82168.0,0.243403]
[1731334013653,0.121685,82180.0,82175.0,0.0213707]
[1731334013848,0.12594221,82179.0,82177.0,0.18246954]
[1731334014052,0.24762721,82179.0,82178.0,0.0133707]
[1731334014173,0.24762721,82179.0,82178.0,0.01718063]
[1731334014396,0.12594221,82179.0,82166.0,0.0213707]
[1731334014618,0.121693,82174.0,82168.0,0.18246954]
[1731334014837,0.12169,82176.0,82175.0,0.006]
[1731334015052,0.002,82172.0,82162.0,0.0213707]
[1731334015291,0.002,82167.0,82163.0,0.01338143]
[1731334015444,0.12594221,82166.0,82151.0,0.243454]
[1731334015658,0.12594221,82166.0,82157.0,0.18246954]
[1731334015932,0.243418,82163.0,82158.0,0.0172066]
[1731334016097,0.121714,82160.0,82159.0,0.01338466]
[1731334016295,0.12594221,82162.0,82150.0,0.0213707]
[1731334016551,0.12594221,82162.0,82151.0,0.01339147]
[1731334016552,0.243424,82161.0,82151.0,0.01339147]
[1731334016890,0.121714,82160.0,82152.0,0.01339147]
[1731334017098,0.121714,82160.0,82158.0,0.001]
[1731334017317,0.121715,82159.0,82158.0,0.001]
[1731334017520,0.121715,82159.0,82151.0,0.121725]
[1731334017749,0.24865421,82161.0,82152.0,0.01339507]
[1731334017965,0.24865421,82161.0,82153.0,0.01339507]
[1731334018155,0.24865421,82161.0,82154.0,0.01339507]
[1731334018280,0.24865421,82161.0,82153.0,0.01339507]
[1731334018491,0.24865421,82161.0,82155.0,0.00382175]
[1731334018903,0.24865421,82161.0,82158.0,0.001]
[1731334019521,0.12694221,82161.0,82132.0,0.24435]
[1731334019731,0.001,82161.0,82155.0,0.004]
[1731334019937,0.18246954,82160.0,82158.0,0.122715]
[1731334020140,0.121704,82167.0,82158.0,0.121715]
[1731334020366,0.121704,82167.0,82140.0,0.41104347]
[1731334020367,0.121713,82160.0,82159.0,0.00387624]
[1731334020582,0.001,82161.0,82160.0,0.121713]
[1731334021009,0.001,82161.0,82160.0,0.12558888]
[1731334021219,0.001,82161.0,82160.0,0.13897807]
[1731334021642,0.003,82161.0,82160.0,0.13897807]
[1731334022057,0.003,82161.0,82160.0,1.13897807]
[1731334022273,0.002,82161.0,82160.0,1.16039193]
[1731334023149,0.002,82161.0,82160.0,1.03867893]
[1731334023371,0.002,82161.0,82160.0,1.01726507]
[1731334023577,0.003,82161.0,82160.0,1.01726507]
[1731334023747,0.001,82161.0,82160.0,1.01726507]
[1731334024128,0.001,82161.0,82160.0,1.13897707]
[1731334024333,0.003,82161.0,82160.0,1.01726507]
[1731334024543,0.003,82161.0,82160.0,1.13897807]
[1731334025214,0.01,82161.0,82160.0,1.13897807]
[1731334025564,0.01,82161.0,82160.0,1.01726507]
[1731334025731,0.01,82161.0,82160.0,1.13897807]
[1731334025960,0.008,82161.0,82160.0,1.13897807]
[1731334026366,0.014,82161.0,82160.0,1.13997807]
[1731334026613,0.006,82161.0,82160.0,1.13997807]
[1731334026785,0.1217,82169.0,82161.0,0.121711]
[1731334026986,0.12594221,82169.0,82162.0,0.01338919]
[1731334027232,0.12594221,82169.0,82163.0,0.01338919]
[1731334027428,0.12594221,82169.0,82164.0,0.01338919]
[1731334027631,0.121704,82167.0,82164.0,0.00393587]
[1731334027844,0.121704,82166.0,82164.0,0.00393587]
[1731334028072,0.13294221,82169.0,82161.0,0.001]
[1731334028239,0.38334421,82169.0,82165.0,0.00393544]
[1731334028459,0.38334421,82169.0,82161.0,0.001]
[1731334028460,0.243403,82168.0,82161.0,0.001]
[1731334028585,0.121703,82167.0,82166.0,0.00393514]
[1731334028787,0.243403,82168.0,82161.0,0.01437266]
[1731334028984,0.121705,82166.0,82161.0,0.01337266]
[1731334029248,0.121703,82167.0,82161.0,0.01337266]
[1731334029461,0.121712,82161.0,82160.0,1.000844]
[1731334029606,0.27265421,82161.0,82160.0,1.000844]
[1731334030699,0.27265421,82161.0,82160.0,1.001844]
[1731334030700,0.28365421,82161.0,82160.0,1.001844]
[1731334030919,0.28365421,82161.0,82160.0,1.00578734]
[1731334031127,0.29065421,82161.0,82160.0,1.00578734]
[1731334031333,0.57477218,82161.0,82160.0,1.00578734]
[1731334031534,0.28970681,82161.0,82160.0,1.00578734]
[1731334031748,0.30370681,82161.0,82160.0,1.00578734]
[1731334032164,0.29770681,82161.0,82160.0,1.000844]
[1731334032418,0.31170681,82161.0,82160.0,1.001844]
[1731334032620,0.31170681,82161.0,82160.0,1.00556339]
[1731334033037,0.28370681,82161.0,82160.0,1.00456339]
[1731334033411,0.31170681,82161.0,82160.0,1.00556339]
[1731334033642,0.29770681,82161.0,82160.0,1.00556339]
[1731334033843,0.28370681,82161.0,82160.0,1.00456339]
[1731334034114,0.29770681,82161.0,82160.0,1.00456339]
[1731334034757,0.31170681,82161.0,82160.0,1.00456339]
[1731334034975,0.0570526,82161.0,82160.0,1.00456339]
[1731334035216,0.028,82161.0,82160.0,1.00456339]
[1731334035466,0.014,82161.0,82160.0,1.00456339]
[1731334035915,0.149712,82161.0,82160.0,1.00556339]
[1731334036351,0.172712,82161.0,82160.0,1.00556339]
[1731334038884,0.72121168,82161.0,82160.0,1.00556339]
[1731334039384,0.97121168,82161.0,82160.0,1.00556339]
[1731334039515,0.97321168,82161.0,82160.0,1.00556339]
[1731334040858,1.05871168,82161.0,82160.0,1.00556339]
[1731334041280,1.36403033,82161.0,82160.0,1.00556339]
[1731334041484,1.19647286,82161.0,82160.0,1.001844]
[1731334041687,1.3470539,82161.0,82160.0,1.001844]
[1731334041863,1.3470539,82161.0,82160.0,1.00557233]
[1731334042065,1.19647286,82161.0,82160.0,1.00557233]
[1731334042269,0.93441539,82161.0,82160.0,1.00457233]
[1731334042590,0.54165421,82161.0,82160.0,1.00457233]
[1731334042917,0.54165421,82161.0,82160.0,1.00557233]
[1731334042918,0.55565421,82161.0,82160.0,1.00557233]
[1731334043092,0.52765421,82161.0,82160.0,1.00457233]
[1731334043296,0.54165421,82161.0,82160.0,1.00457233]
[1731334043496,0.54165421,82161.0,82160.0,1.00557233]
[1731334043497,0.55565421,82161.0,82160.0,1.00557233]
[1731334043659,0.26365421,82161.0,82160.0,1.00557233]
[1731334043860,0.28265421,82161.0,82160.0,1.00557233]
[1731334044577,0.26865421,82161.0,82160.0,1.00457233]
[1731334045046,0.46421168,82161.0,82160.0,1.00457233]
[1731334045396,0.45021168,82161.0,82160.0,1.00457233]
[1731334045598,0.70021168,82161.0,82160.0,1.00457233]
[1731334045777,0.70921168,82161.0,82160.0,1.00457233]
[1731334046007,0.99701951,82161.0,82160.0,1.00457233]
[1731334046206,0.52765421,82161.0,82160.0,1.00457233]
[1731334046402,0.54165421,82161.0,82160.0,1.00457233]
[1731334046607,0.59349527,82161.0,82160.0,1.00457233]
[1731334046808,0.57949527,82161.0,82160.0,1.00457233]
[1731334047317,0.82949527,82161.0,82160.0,1.00457233]
[1731334047514,0.84349527,82161.0,82160.0,1.00457233]
[1731334047776,0.81549527,82161.0,82160.0,1.00457233]
[1731334047979,0.82949527,82161.0,82160.0,1.00457233]
[1731334048188,0.87968244,82161.0,82160.0,1.00457233]
[1731334048340,0.84349527,82161.0,82160.0,1.00457233]
[1731334048568,0.58649527,82161.0,82160.0,1.00457233]
[1731334048765,0.58649527,82161.0,82160.0,1.12628533]
[1731334048766,0.31584106,82161.0,82160.0,1.12628533]
[1731334048995,0.278,82161.0,82160.0,1.03951912]
[1731334049210,0.278,82161.0,82160.0,1.16123212]
[1731334049377,0.278,82161.0,82160.0,1.03951912]
[1731334049982,0.301,82161.0,82160.0,1.03951912]
[1731334050395,0.422712,82161.0,82160.0,1.03951912]
[1731334050593,0.172712,82161.0,82160.0,1.03951912]
[1731334050881,0.29865421,82161.0,82160.0,1.03579079]
[1731334051281,0.29865421,82161.0,82160.0,1.03954521]
[1731334051801,0.3365731,82161.0,82160.0,1.03954521]
[1731334052148,0.3365731,82161.0,82160.0,1.0395452]
[1731334052149,0.21486113,82161.0,82160.0,1.0395452]
[1731334052279,0.051,82161.0,82160.0,1.12631142]
[1731334052510,0.051,82161.0,82160.0,1.16125674]
[1731334052776,0.051,82161.0,82160.0,1.03954374]
[1731334052965,0.54865421,82161.0,82160.0,1.03954374]
[1731334053311,0.55365421,82161.0,82160.0,1.03954374]
[1731334053516,0.59157469,82161.0,82160.0,1.03954374]
[1731334053734,0.56557469,82161.0,82160.0,1.01803851]
[1731334054116,0.62983992,82161.0,82160.0,1.03954349]
[1731334054328,0.61583992,82161.0,82160.0,1.03954349]
[1731334054525,0.60183983,82161.0,82160.0,1.03954376]
[1731334054739,0.61583983,82161.0,82160.0,1.03954376]
[1731334055133,0.62983983,82161.0,82160.0,1.03954376]
[1731334055336,0.57757469,82161.0,82160.0,1.03954376]
[1731334055462,0.57957469,82161.0,82160.0,1.03954376]
[1731334055664,0.59357469,82161.0,82160.0,1.0395483]
[1731334055865,0.57957469,82161.0,82160.0,1.0395483]
[1731334056096,0.63385544,82161.0,82160.0,1.0395483]
[1731334056304,0.57757469,82161.0,82160.0,1.0664382]
[1731334056484,0.35886287,82161.0,82160.0,1.0664382]
[1731334056681,0.32257469,82161.0,82160.0,1.0664382]
[1731334056977,0.20086269,82161.0,82160.0,1.0664382]
[1731334057153,0.20086269,82161.0,82160.0,1.06268378]
[1731334057356,0.25117575,82161.0,82160.0,1.06268378]
[1731334057562,0.23122296,82161.0,82160.0,1.06642356]
[1731334057715,0.21328417,82161.0,82160.0,1.08793433]
[1731334057923,0.21328417,82161.0,82160.0,1.20965085]
[1731334057924,0.17694221,82161.0,82160.0,1.20965085]
[1731334058160,0.028,82161.0,82160.0,1.18813656]
[1731334058360,0.001688,82175.0,82174.0,0.121692]
[1731334058523,0.001688,82175.0,82174.0,0.31283178]
[1731334058919,0.001688,82175.0,82174.0,0.31655788]
[1731334059155,0.001688,82175.0,82174.0,0.14586588]
[1731334059570,0.12763021,82175.0,82174.0,0.06556588]
[1731334059793,0.24932121,82175.0,82174.0,0.06556588]
[1731334059991,0.24932121,82175.0,82167.0,0.121702]
[1731334059992,0.12763021,82175.0,82167.0,0.121702]
[1731334060228,0.12763021,82175.0,82169.0,0.02148551]
[1731334060229,0.121695,82172.0,82169.0,0.02148551]
[1731334060451,0.023,82171.0,82170.0,0.06173714]
[1731334060660,0.024688,82175.0,82174.0,0.121692]
[1731334060875,0.024688,82175.0,82174.0,0.15658584]
[1731334061134,0.024688,82175.0,82174.0,0.16004886]
[1731334061374,0.15263021,82175.0,82174.0,0.03835686]
[1731334061581,0.27232121,82175.0,82174.0,0.01688331]
[1731334061796,0.27232121,82175.0,82174.0,0.01342029]
[1731334062024,0.27732121,82175.0,82174.0,0.01342029]
[1731334062227,0.16763021,82175.0,82174.0,0.001]
[1731334062475,0.42360539,82175.0,82174.0,0.001]
[1731334062710,0.144699,82170.0,82162.0,0.24342]
[1731334062886,0.023,82168.0,82163.0,0.03489914]
[1731334063126,0.36934221,82169.0,82163.0,0.03489914]
[1731334063127,0.023,82166.0,82164.0,0.01342333]
[1731334063336,0.14894221,82165.0,82163.0,0.00346885]
[1731334063521,0.14894221,82165.0,82160.0,1.000844]
[1731334063522,0.144708,82164.0,82160.0,1.000844]
[1731334063757,0.023,82164.0,82161.0,0.01342473]
[1731334063956,0.023,82164.0,82162.0,0.01342473]
[1731334064157,0.023,82164.0,82163.0,0.01342473]
[1731334064628,0.023,82164.0,82163.0,0.0349047]
[1731334065267,0.033,82164.0,82163.0,0.13513373]
[1731334065470,0.033,82164.0,82163.0,0.01342473]
[1731334065687,0.037,82164.0,82163.0,0.0359047]
[1731334065914,0.046,82164.0,82163.0,0.03590177]
[1731334066348,0.046,82164.0,82163.0,0.01442334]
[1731334066984,0.042,82164.0,82163.0,0.01442334]
[1731334067193,0.049,82164.0,82163.0,0.01542334]
[1731334068687,0.29664921,82164.0,82163.0,0.01542334]
[1731334068942,0.29664921,82164.0,82163.0,0.002]
[1731334069411,0.68793446,82164.0,82163.0,0.002]
[1731334069654,0.43093446,82164.0,82163.0,0.002]
[1731334069855,0.35121563,82164.0,82163.0,0.002]
[1731334070066,0.049,82164.0,82163.0,0.13713478]
[1731334070298,0.049,82164.0,82163.0,0.16209375]
[1731334070508,0.007,82164.0,82163.0,0.14433279]
[1731334070730,0.18246954,82173.0,82164.0,0.243415]
[1731334070935,0.013,82164.0,82163.0,0.12619449]
[1731334071144,0.013,82164.0,82163.0,0.13611302]
[1731334071145,0.027,82164.0,82163.0,0.13611302]
[1731334071351,0.027,82164.0,82163.0,0.13958333]
[1731334071578,0.022,82164.0,82163.0,0.12617931]
[1731334071797,0.023,82171.0,82165.0,0.243412]
[1731334072032,0.023,82169.0,82167.0,0.121702]
[1731334072244,0.14894221,82169.0,82167.0,0.121702]
[1731334072448,0.14894221,82169.0,82163.0,0.00347031]
[1731334072449,0.14894221,82169.0,82168.0,0.00347063]
[1731334072667,0.14894221,82169.0,82168.0,0.12517163]
[1731334072908,0.14894221,82169.0,82168.0,0.0134055]
[1731334073129,0.14894221,82169.0,82168.0,0.01687995]
[1731334073333,0.14894221,82169.0,82164.0,0.121706]
[1731334073334,0.14894221,82169.0,82164.0,0.243415]
[1731334073560,0.14894221,82169.0,82168.0,0.00347583]
[1731334073782,0.14894221,82169.0,82168.0,0.13510803]
[1731334073998,0.14894221,82169.0,82168.0,0.13858386]
[1731334074227,0.14894221,82169.0,82168.0,0.01688286]
[1731334074650,0.15394221,82169.0,82168.0,0.01788286]
[1731334074877,0.16194221,82169.0,82168.0,0.01788286]
[1731334075089,0.16194221,82169.0,82168.0,0.00447583]
[1731334075289,0.15694221,82169.0,82168.0,0.00447583]
[1731334075506,0.27864221,82169.0,82168.0,0.001]
[1731334075729,0.28064221,82169.0,82168.0,0.00447602]
[1731334075913,0.27864221,82169.0,82168.0,0.001]
[1731334076125,0.28464221,82169.0,82168.0,0.001]
[1731334076551,0.16294221,82169.0,82168.0,0.001]
[1731334076790,0.28464221,82169.0,82168.0,0.001]
[1731334078413,0.28633021,82169.0,82168.0,0.001]
[1731334079874,0.28833021,82169.0,82168.0,0.001]
[1731334080871,0.28633021,82169.0,82168.0,0.001]
[1731334081069,0.28833021,82169.0,82168.0,0.001]
[1731334081300,0.29333021,82169.0,82168.0,0.001]
[1731334081514,0.53367109,82169.0,82168.0,0.001]
[1731334081760,0.53367109,82169.0,82161.0,0.000844]
[1731334081761,0.40171,82162.0,82161.0,0.000844]
[1731334081904,0.66190018,82162.0,82161.0,0.000844]
[1731334082106,0.73464088,82162.0,82161.0,0.00432753]
[1731334082311,0.73464088,82162.0,82161.0,0.000844]
[1731334082312,0.73264088,82162.0,82161.0,0.000844]
[1731334082531,0.65990018,82162.0,82161.0,0.000844]
[1731334082740,0.58020743,82162.0,82161.0,0.000844]
[1731334082923,0.52565221,82162.0,82161.0,0.000844]
[1731334083344,0.52765221,82162.0,82161.0,0.000844]
[1731334083557,0.6619061,82162.0,82161.0,0.000844]
[1731334083967,0.7346468,82162.0,82161.0,0.000844]
[1731334084178,0.52765221,82162.0,82161.0,0.000844]
[1731334084386,0.52765221,82162.0,82161.0,0.001844]
[1731334084387,0.5920195,82162.0,82161.0,0.001844]
[1731334084590,0.55565221,82162.0,82161.0,0.001844]
[1731334084833,0.54745992,82162.0,82161.0,0.001844]
[1731334085032,0.5838273,82162.0,82161.0,0.000844]
[1731334085273,0.56145992,82162.0,82161.0,0.000844]
[1731334085661,0.61601111,82162.0,82161.0,0.000844]
[1731334086035,0.56145992,82162.0,82161.0,0.000844]
[1731334086683,0.61601575,82162.0,82161.0,0.000844]
[1731334087074,0.76845916,82162.0,82161.0,0.000844]
[1731334087213,0.78664434,82162.0,82161.0,0.000844]
[1731334088076,0.73362375,82162.0,82161.0,0.000844]
[1731334088292,0.7414956,82162.0,82161.0,0.000844]
[1731334088667,0.151712,82161.0,82160.0,0.996688]
[1731334088875,0.41191275,82161.0,82160.0,0.996688]
[1731334089029,0.5028647,82161.0,82160.0,1.00017608]
[1731334089227,0.41191275,82161.0,82160.0,1.00017608]
[1731334089429,0.121712,82161.0,82160.0,1.00017608]
[1731334089634,0.014,82162.0,82160.0,1.01359838]
[1731334089977,0.014,82161.0,82160.0,1.00117608]
[1731334090309,0.014,82161.0,82160.0,1.13631067]
[1731334090514,0.12594221,82162.0,82161.0,0.121712]
[1731334090713,0.07276148,82170.0,82161.0,0.121712]
[1731334090714,0.03637773,82168.0,82162.0,0.12171]
[1731334090930,0.03637773,82168.0,82163.0,0.03489847]
[1731334090931,0.12594221,82168.0,82163.0,0.03489847]
[1731334091102,0.001688,82169.0,82168.0,0.121701]
[1731334091353,0.001688,82169.0,82168.0,0.13512259]
[1731334091558,0.001688,82169.0,82168.0,0.23970193]
[1731334092004,0.001688,82169.0,82168.0,0.33970193]
[1731334092277,0.001688,82169.0,82168.0,0.41284166]
[1731334093477,0.002688,82169.0,82168.0,0.42084166]
[1731334093678,0.002688,82169.0,82168.0,0.42184166]
[1731334093889,0.002688,82169.0,82168.0,0.44329854]
[1731334094054,0.001688,82169.0,82168.0,0.43429854]
[1731334094266,0.002688,82169.0,82168.0,0.44329854]
[1731334094438,0.003688,82169.0,82168.0,0.42384166]
[1731334094821,0.003688,82169.0,82168.0,0.44529854]
[1731334094953,0.003688,82169.0,82168.0,0.42384166]
[1731334095359,0.003688,82169.0,82168.0,0.39700193]
[1731334095757,0.003688,82169.0,82168.0,0.5645594]
[1731334095958,0.003688,82169.0,82168.0,0.59139913]
[1731334096963,0.003688,82169.0,82168.0,0.5645594]
[1731334097753,0.003688,82169.0,82168.0,0.39700193]
[1731334098225,0.243334,82192.0,82168.0,0.39700193]
[1731334098226,0.18246954,82193.0,82192.0,0.121666]
[1731334098455,0.18246954,82193.0,82192.0,0.48101752]